fUSD/lending_fUSD_20240215
["ID","MTS","AMOUNT","RATE_DAILY","PERIOD"]
[314163398,1708036238653,-234.021624,0.00037248,25]
[314163400,1708036238661,-163.21302205,0.00037281,2]
[314163401,1708036238671,-156.1,0.00037294,2]
[314163402,1708036238679,-153.93,0.00037318,2]
[314163403,1708036238688,-4037.33018647,0.00037338,2]
[314163404,1708036238697,-51435.46652935,0.00037338,2]
[314163405,1708036238706,-151.021624,0.00037348,26]
[314163406,1708036238716,-151.021624,0.00037348,26]
[314163407,1708036238725,-234.021624,0.00037348,26]
[314163408,1708036238733,-250.0,0.00037356,2]
[314163409,1708036238742,-155.0,0.000374,2]
[314163410,1708036238751,-150.0,0.000374,20]
[314163411,1708036238760,-354.4,0.000374,2]
[314163412,1708036238769,-500.0,0.000374,2]
[314163413,1708036238778,-258.69,0.000374,30]
[314163414,1708036238787,-217.0,0.00037424,30]
[314163415,1708036238796,-151.0,0.00037424,30]
[314163416,1708036238804,-2506.27714986,0.00037448,8]
[314163417,1708036238825,-151.021624,0.00037448,25]
[314163418,1708036238834,-151.021624,0.00037448,25]
[314163419,1708036238843,-234.021624,0.00037448,25]
[314163420,1708036238853,-162.0,0.0003747,2]
[314163421,1708036238862,-1000.0,0.000375,2]
[314163422,1708036238872,-156.1,0.00037512,2]
[314163423,1708036238881,-153.93,0.00037515,2]
[314163424,1708036238890,-527.72,0.00037533,2]
[314163425,1708036238900,-258.69,0.00037537,30]
[314163426,1708036238910,-151.021624,0.00037548,26]
[314163427,1708036238919,-151.021624,0.00037548,26]
[314163428,1708036238929,-151.021624,0.00037548,26]
[314163429,1708036238939,-151.021624,0.00037548,26]
[314163430,1708036238949,-234.021624,0.00037548,26]
[314163431,1708036238958,-279.835587,0.00037583,3]
[314163432,1708036238967,-297.25071922,0.00037594,3]
[314163433,1708036238977,-358.91187693,0.00037596,4]
[314163434,1708036238986,-200.0,0.00037597,3]
[314163435,1708036238995,-2846.74490555,0.00037601,4]
[314163436,1708036239004,-150.0,0.00037616,2]
[314163437,1708036239013,-250.0,0.0003763,2]
[314163438,1708036239022,-151.021624,0.00037648,25]
[314163439,1708036239032,-151.021624,0.00037648,25]
[314163440,1708036239042,-151.021624,0.00037648,25]
[314163441,1708036239051,-151.021624,0.00037648,25]
[314163442,1708036239060,-151.021624,0.00037648,25]
[314163443,1708036239069,-244.66083002,0.00037658,4]
[314163444,1708036239079,-150.0,0.00037662,2]
[314163445,1708036239088,-817.49343927,0.00037669,4]
[314163446,1708036239099,-258.69,0.00037674,30]
[314163447,1708036239110,-153.93,0.00037713,2]
[314163448,1708036239120,-156.1,0.0003773,2]
[314163449,1708036239130,-151.021624,0.00037748,24]
[314163450,1708036239139,-151.021624,0.00037748,24]
[314163451,1708036239150,-151.021624,0.00037748,24]
[314163452,1708036239159,-151.021624,0.00037748,24]
[314163453,1708036239168,-151.021624,0.00037748,24]
[314163454,1708036239179,-163.21302205,0.00037769,2]
[314163455,1708036239189,-851.33950985,0.000378,2]
[314163456,1708036239198,-533.94499808,0.00037804,2]
[314163457,1708036239207,-593.2,0.0003781,2]
[314163458,1708036239217,-258.69,0.00037811,30]
[314163459,1708036239226,-151.18,0.00037818,2]
[314163460,1708036239235,-206.22,0.00037827,2]
[314163461,1708036239245,-151.021624,0.00037848,25]
[314163462,1708036239258,-151.021624,0.00037848,25]
[314163463,1708036239268,-151.021624,0.00037848,25]
[314163464,1708036239277,-151.021624,0.00037848,25]
[314163465,1708036239288,-151.021624,0.00037848,25]
[314163466,1708036239299,-151.021624,0.00037848,25]
[314163467,1708036239310,-202.79257463,0.00037897,2]
[314163468,1708036239321,-2000.0,0.000379,2]
[314163469,1708036239332,-200.0,0.000379,2]
[314163470,1708036239343,-3000.0,0.000379,33]
[314163471,1708036239352,-2000.0,0.000379,2]
[314163472,1708036239362,-200.0,0.000379,2]
[314163473,1708036239371,-157128.134416,0.000379,2]
[314163474,1708036239381,-3000.0,0.000379,2]
[314163475,1708036239390,-250.0,0.00037904,2]
[314163476,1708036239400,-153.93,0.0003791,2]
[314163477,1708036239410,-3000.0,0.0003791,33]
[314163478,1708036239419,-3000.0,0.0003792,33]
[314163479,1708036239429,-3000.0,0.0003793,33]
[314163480,1708036239438,-5768.159084,0.0003794,33]
[314163481,1708036239448,-151.021624,0.00037948,26]
[314163482,1708036239458,-500.0,0.00037948,2]
[314163483,1708036239467,-258.69,0.00037948,30]
[314163484,1708036239476,-156.1,0.00037948,2]
[314163485,1708036239485,-78564.0672081,0.0003799,2]
[314163486,1708036239495,-463755.64334975,0.00038,3]
[314163487,1708036239504,-249.99,0.00038,120]
[314163488,1708036239513,-50000.0,0.00038,2]
[314163489,1708036239527,-10000.0,0.00038,10]
[314163490,1708036239536,-2656.57741132,0.00038007,2]
[314163491,1708036239546,-152.0,0.0003803,7]
[314163492,1708036239556,-151.021624,0.00038048,27]
[314163493,1708036239565,-258.69,0.00038085,30]
[314163494,1708036239574,-153.93,0.00038107,2]
[314163495,1708036239584,-151.0,0.00038111,120]
[314163496,1708036239593,-170.92530935,0.00038145,2]
[314163497,1708036239602,-248.84904622,0.00038145,11]
[314163498,1708036239612,-151.021624,0.00038148,24]
[314163499,1708036239621,-150.0,0.00038155,2]
[314163500,1708036239633,-200.31907233,0.00038156,2]
[314163501,1708036239642,-21794.85516392,0.00038156,11]
[314163502,1708036239652,-156.1,0.00038166,2]
[314163503,1708036239661,-152.0,0.00038167,7]
[314163504,1708036239671,-152.97427393,0.00038175,2]
[314163505,1708036239680,-489.97894041,0.00038178,2]
[314163506,1708036239690,-851.33950985,0.00038188,2]
[314163507,1708036239699,-533.94499806,0.00038213,2]
[314163508,1708036239708,-258.69,0.00038222,30]
[314163509,1708036239718,-336.83945975,0.00038226,2]
[314163510,1708036239727,-235692.201624,0.00038235,2]
[314163511,1708036239736,-157128.134416,0.00038235,2]
[314163512,1708036239746,-151.021624,0.00038248,25]
[314163513,1708036239756,-1000.0,0.00038256,2]
[314163514,1708036239765,-5000.0,0.00038256,3]
[314163515,1708036239774,-13762.1016,0.00038256,2]
[314163516,1708036239783,-55555.0,0.00038256,3]
[314163517,1708036239793,-205.21073047,0.00038256,11]
[314163518,1708036239802,-163.21302205,0.00038256,2]
[314163519,1708036239811,-372.22666196,0.00038256,2]
[314163520,1708036239820,-395.68959335,0.00038256,2]
[314163521,1708036239829,-535.86907593,0.00038256,2]
[314163522,1708036239838,-258.61023714,0.00038256,2]
[314163523,1708036239847,-2622.00885214,0.00038256,2]
[314163524,1708036239857,-2000.0,0.00038279,2]
[314163525,1708036239866,-200.0,0.00038279,2]
[314163526,1708036239875,-200.0,0.00038279,2]
[314163527,1708036239885,-152.0,0.00038304,7]
[314163528,1708036239894,-153.93,0.00038305,2]
[314163529,1708036239904,-151.021624,0.00038348,26]
[314163530,1708036239914,-158.22,0.00038352,2]
[314163531,1708036239923,-202.79257463,0.00038353,2]
[314163532,1708036239933,-658.04131654,0.00038356,3]
[314163533,1708036239943,-500.0,0.00038356,7]
[314163534,1708036239953,-548.70613449,0.00038356,9]
[314163535,1708036239963,-500.0,0.00038356,7]
[314163536,1708036239975,-500.0,0.00038356,7]
[314163537,1708036239984,-504.84872914,0.00038356,7]
[314163538,1708036239994,-500.0,0.00038356,7]
[314163539,1708036240003,-500.0,0.00038356,7]
[314163540,1708036240012,-500.0,0.00038356,7]
[314163541,1708036240021,-500.0,0.00038356,7]
[314163542,1708036240030,-500.0,0.00038356,7]
[314163543,1708036240039,-510.73845397,0.00038356,7]
[314163544,1708036240049,-428.12594019,0.00038356,7]
[314163545,1708036240059,-500.0,0.00038356,2]
[314163546,1708036240068,-500.0,0.00038356,7]
[314163547,1708036240078,-500.0,0.00038356,7]
[314163548,1708036240087,-633.04,0.00038356,7]
[314163549,1708036240097,-500.0,0.00038356,7]
[314163550,1708036240110,-551.62,0.00038356,7]
[314163551,1708036240120,-514.86162866,0.00038356,7]
[314163552,1708036240130,-500.0,0.00038356,2]
[314163553,1708036240139,-500.0,0.00038356,7]
[314163554,1708036240150,-500.0,0.00038356,7]
[314163555,1708036240160,-500.0,0.00038356,7]
[314163556,1708036240170,-500.0,0.00038356,7]
[314163557,1708036240180,-500.0,0.00038356,7]
[314163558,1708036240189,-500.0,0.00038356,7]
[314163559,1708036240198,-500.0,0.00038356,7]
[314163560,1708036240207,-500.0,0.00038356,7]
[314163561,1708036240217,-500.0,0.00038356,7]
[314163562,1708036240226,-500.0,0.00038356,7]
[314163563,1708036240236,-500.0,0.00038356,7]
[314163564,1708036240246,-500.0,0.00038356,7]
[314163565,1708036240255,-500.0,0.00038356,7]
[314163566,1708036240264,-500.0,0.00038356,7]
[314163567,1708036240274,-500.0,0.00038356,7]
[314163568,1708036240283,-517.45500124,0.00038356,7]
[314163569,1708036240292,-500.0,0.00038356,7]
[314163570,1708036240301,-500.0,0.00038356,7]
[314163571,1708036240310,-500.0,0.00038356,7]
[314163572,1708036240320,-500.0,0.00038356,7]
[314163573,1708036240516,-509.08903532,0.00038356,7]
[314163574,1708036240525,-547.3551282,0.00038356,7]
[314163575,1708036240534,-500.0,0.00038356,7]
[314163576,1708036240544,-532.73314181,0.00038356,7]
[314163577,1708036240553,-509.54190916,0.00038356,7]
[314163578,1708036240562,-500.0,0.00038356,7]
[314163579,1708036240572,-500.0,0.00038356,7]
[314163580,1708036240581,-500.0,0.00038356,7]
[314163581,1708036240590,-500.0,0.00038356,7]
[314163582,1708036240599,-500.0,0.00038356,7]
[314163583,1708036240608,-500.0,0.00038356,7]
[314163584,1708036240617,-500.0,0.00038356,7]
[314163585,1708036240626,-500.0,0.00038356,7]
[314163586,1708036240636,-500.0,0.00038356,7]
[314163587,1708036240645,-500.0,0.00038356,7]
[314163588,1708036240654,-518.93042336,0.00038356,7]
[314163589,1708036240663,-500.0,0.00038356,7]
[314163590,1708036240672,-505.84912423,0.00038356,7]
[314163591,1708036240682,-524.03251789,0.00038356,7]
[314163592,1708036240691,-500.0,0.00038356,7]
[314163593,1708036240700,-500.0,0.00038356,7]
[314163595,1708036240709,-500.0,0.00038356,7]
[314163596,1708036240717,-500.0,0.00038356,7]
[314163597,1708036240736,-500.0,0.00038356,7]
[314163598,1708036240747,-500.0,0.00038356,7]
[314163599,1708036240756,-417.07754055,0.00038356,7]
[314163601,1708036240766,-500.0,0.00038356,7]
[314163602,1708036240775,-500.0,0.00038356,7]
[314163603,1708036240785,-500.0,0.00038356,7]
[314163604,1708036240794,-171.61671148,0.00038356,7]
[314163605,1708036240803,-500.0,0.00038356,7]
[314163606,1708036240813,-500.0,0.00038356,7]
[314163607,1708036240822,-500.0,0.00038356,7]
[314163608,1708036240832,-500.0,0.00038356,7]
[314163609,1708036240841,-500.0,0.00038356,7]
[314163610,1708036240851,-500.0,0.00038356,7]
[314163611,1708036240860,-500.0,0.00038356,7]
[314163612,1708036240869,-500.0,0.00038356,7]
[314163613,1708036240879,-500.0,0.00038356,7]
[314163614,1708036240888,-500.0,0.00038356,7]
[314163615,1708036240897,-500.0,0.00038356,7]
[314163616,1708036240907,-500.0,0.00038356,7]
[314163617,1708036240916,-519.02279482,0.00038356,7]
[314163618,1708036240926,-500.0,0.00038356,7]
[314163619,1708036240935,-500.0,0.00038356,7]
[314163620,1708036240945,-500.0,0.00038356,7]
[314163621,1708036240954,-500.0,0.00038356,7]
[314163622,1708036240964,-500.0,0.00038356,7]
[314163623,1708036240973,-500.0,0.00038356,7]
[314163624,1708036240982,-500.0,0.00038356,7]
[314163625,1708036240992,-500.0,0.00038356,7]
[314163626,1708036241001,-500.0,0.00038356,7]
[314163627,1708036241011,-258.10664868,0.00038356,7]
[314163628,1708036241021,-500.0,0.00038356,7]
[314163629,1708036241031,-500.0,0.00038356,7]
[314163630,1708036241040,-500.0,0.00038356,7]
[314163631,1708036241049,-318.70201796,0.00038356,7]
[314163632,1708036241059,-513.99335436,0.00038356,7]
[314163633,1708036241069,-520.8161377,0.00038356,7]
[314163634,1708036241078,-500.0,0.00038356,7]
[314163635,1708036241088,-500.0,0.00038356,7]
[314163636,1708036241100,-500.0,0.00038356,7]
[314163637,1708036241111,-500.0,0.00038356,7]
[314163638,1708036241121,-500.0,0.00038356,7]
[314163639,1708036241131,-500.0,0.00038356,7]
[314163640,1708036241142,-500.0,0.00038356,7]
[314163641,1708036241152,-175.03721412,0.00038356,7]
[314163642,1708036241162,-500.0,0.00038356,7]
[314163643,1708036241172,-500.0,0.00038356,7]
[314163644,1708036241183,-500.0,0.00038356,7]
[314163645,1708036241193,-500.0,0.00038356,7]
[314163646,1708036241202,-500.0,0.00038356,7]
[314163647,1708036241212,-527.69713697,0.00038356,7]
[314163648,1708036241222,-500.0,0.00038356,7]
[314163649,1708036241231,-500.0,0.00038356,7]
[314163650,1708036241241,-500.0,0.00038356,7]
[314163651,1708036241250,-500.0,0.00038356,7]
[314163652,1708036241263,-500.0,0.00038356,7]
[314163653,1708036241272,-500.0,0.00038356,7]
[314163654,1708036241282,-500.0,0.00038356,7]
[314163655,1708036241292,-500.0,0.00038356,7]
[314163656,1708036241302,-500.0,0.00038356,7]
[314163657,1708036241311,-500.0,0.00038356,7]
[314163658,1708036241321,-500.0,0.00038356,7]
[314163659,1708036241331,-500.0,0.00038356,7]
[314163660,1708036241341,-500.0,0.00038356,7]
[314163661,1708036241351,-500.0,0.00038356,7]
[314163662,1708036241361,-500.0,0.00038356,7]
[314163663,1708036241370,-500.0,0.00038356,7]
[314163664,1708036241381,-500.0,0.00038356,7]
[314163665,1708036241391,-500.0,0.00038356,7]
[314163666,1708036241401,-604.61950329,0.00038356,7]
[314163667,1708036241410,-621.35313092,0.00038356,7]
[314163668,1708036241420,-500.0,0.00038356,7]
[314163669,1708036241430,-314.70989924,0.00038356,7]
[314163670,1708036241440,-500.0,0.00038356,7]
[314163671,1708036241449,-500.0,0.00038356,7]
[314163672,1708036241459,-500.0,0.00038356,7]
[314163673,1708036241469,-500.0,0.00038356,2]
[314163674,1708036241478,-500.0,0.00038356,7]
[314163675,1708036241488,-233.32862863,0.00038356,7]
[314163676,1708036241497,-542.28510015,0.00038356,7]
[314163677,1708036241506,-500.0,0.00038356,7]
[314163678,1708036241515,-500.0,0.00038356,7]
[314163679,1708036241525,-500.0,0.00038356,7]
[314163680,1708036241534,-500.0,0.00038356,7]
[314163681,1708036241543,-500.0,0.00038356,7]
[314163682,1708036241553,-500.0,0.00038356,7]
[314163683,1708036241563,-500.0,0.00038356,7]
[314163684,1708036241572,-500.0,0.00038356,7]
[314163685,1708036241581,-500.0,0.00038356,7]
[314163686,1708036241591,-500.0,0.00038356,7]
[314163687,1708036241600,-500.0,0.00038356,7]
[314163688,1708036241610,-500.0,0.00038356,7]
[314163689,1708036241619,-500.0,0.00038356,7]
[314163690,1708036241628,-500.41624824,0.00038356,7]
[314163691,1708036241638,-500.0,0.00038356,7]
[314163692,1708036241646,-500.0,0.00038356,7]
[314163693,1708036241655,-504.07535797,0.00038356,7]
[314163694,1708036241665,-500.0,0.00038356,7]
[314163695,1708036241674,-500.0,0.00038356,7]
[314163696,1708036241683,-500.0,0.00038356,7]
[314163697,1708036241692,-500.0,0.00038356,7]
[314163698,1708036241702,-500.0,0.00038356,7]
[314163699,1708036241711,-500.0,0.00038356,7]
[314163700,1708036241720,-500.0,0.00038356,7]
[314163701,1708036241729,-500.0,0.00038356,7]
[314163702,1708036241738,-500.0,0.00038356,7]
[314163703,1708036241747,-500.0,0.00038356,7]
[314163704,1708036241756,-547.94492443,0.00038356,7]
[314163705,1708036241765,-500.0,0.00038356,7]
[314163706,1708036241774,-500.0,0.00038356,7]
[314163707,1708036241783,-500.0,0.00038356,7]
[314163708,1708036241793,-500.0,0.00038356,7]
[314163709,1708036241802,-500.00000033,0.00038356,7]
[314163710,1708036241811,-500.0,0.00038356,7]
[314163711,1708036241820,-500.0,0.00038356,7]
[314163712,1708036241829,-500.0,0.00038356,7]
[314163713,1708036241838,-500.0,0.00038356,7]
[314163714,1708036241847,-500.0,0.00038356,7]
[314163715,1708036241856,-500.0,0.00038356,7]
[314163716,1708036241866,-594.16226028,0.00038356,7]
[314163717,1708036241875,-500.0,0.00038356,7]
[314163718,1708036241885,-500.0,0.00038356,7]
[314163719,1708036241895,-500.0,0.00038356,7]
[314163720,1708036241904,-500.0,0.00038356,7]
[314163721,1708036241913,-546.12270224,0.00038356,7]
[314163722,1708036241922,-500.0,0.00038356,7]
[314163723,1708036241932,-500.0,0.00038356,7]
[314163724,1708036241942,-500.0,0.00038356,7]
[314163725,1708036241951,-565.91710953,0.00038356,7]
[314163726,1708036241961,-500.0,0.00038356,7]
[314163727,1708036241970,-575.81964172,0.00038356,7]
[314163728,1708036241979,-500.0,0.00038356,7]
[314163729,1708036241989,-500.0,0.00038356,7]
[314163730,1708036241998,-500.0,0.00038356,7]
[314163731,1708036242007,-500.0,0.00038356,7]
[314163732,1708036242016,-500.0,0.00038356,7]
[314163733,1708036242025,-500.0,0.00038356,7]
[314163734,1708036242034,-500.0,0.00038356,7]
[314163735,1708036242043,-500.0,0.00038356,7]
[314163736,1708036242052,-500.0,0.00038356,7]
[314163737,1708036242062,-500.0,0.00038356,7]
[314163738,1708036242071,-500.0,0.00038356,7]
[314163739,1708036242080,-500.0,0.00038356,7]
[314163740,1708036242090,-500.0,0.00038356,7]
[314163741,1708036242103,-500.0,0.00038356,7]
[314163742,1708036242113,-500.0,0.00038356,7]
[314163743,1708036242122,-518.30358916,0.00038356,7]
[314163744,1708036242132,-500.0,0.00038356,7]
[314163745,1708036242142,-500.0,0.00038356,7]
[314163746,1708036242152,-500.0,0.00038356,7]
[314163747,1708036242161,-500.0,0.00038356,7]
[314163748,1708036242170,-500.0,0.00038356,7]
[314163749,1708036242181,-500.0,0.00038356,7]
[314163750,1708036242190,-150.0,0.00038356,7]
[314163751,1708036242199,-500.0,0.00038356,7]
[314163752,1708036242209,-634.35144304,0.00038356,7]
[314163753,1708036242218,-500.0,0.00038356,7]
[314163754,1708036242227,-509.28410661,0.00038356,7]
[314163755,1708036242236,-500.0,0.00038356,7]
[314163756,1708036242244,-500.0,0.00038356,7]
[314163757,1708036242253,-548.5003245,0.00038356,7]
[314163758,1708036242263,-500.0,0.00038356,7]
[314163759,1708036242272,-500.0,0.00038356,7]
[314163760,1708036242281,-500.0,0.00038356,7]
[314163761,1708036242291,-585.01320632,0.00038356,7]
[314163762,1708036242300,-500.0,0.00038356,7]
[314163763,1708036242309,-500.0,0.00038356,7]
[314163764,1708036242318,-500.0,0.00038356,7]
[314163765,1708036242327,-525.13489782,0.00038356,7]
[314163766,1708036242336,-500.0,0.00038356,7]
[314163767,1708036242346,-502.13161105,0.00038356,7]
[314163768,1708036242355,-500.0,0.00038356,7]
[314163769,1708036242364,-510.67728226,0.00038356,7]
[314163770,1708036242373,-500.0,0.00038356,7]
[314163771,1708036242382,-500.0,0.00038356,7]
[314163773,1708036242392,-500.0,0.00038356,7]
[314163774,1708036242401,-515.51286091,0.00038356,7]
[314163775,1708036242410,-491.03807483,0.00038356,7]
[314163776,1708036242419,-528.55659483,0.00038356,7]
[314163777,1708036242427,-500.0,0.00038356,7]
[314163778,1708036242437,-500.0,0.00038356,7]
[314163779,1708036242445,-500.0,0.00038356,7]
[314163780,1708036242454,-500.0,0.00038356,7]
[314163781,1708036242463,-500.0,0.00038356,7]
[314163782,1708036242472,-172.26574441,0.00038356,7]
[314163783,1708036242481,-500.0,0.00038356,7]
[314163784,1708036242490,-1000.0,0.00038356,7]
[314163785,1708036242498,-500.0,0.00038356,7]
[314163786,1708036242506,-336.90757042,0.00038356,7]
[314163787,1708036242514,-500.0,0.00038356,7]
[314163788,1708036242524,-500.0,0.00038356,7]
[314163789,1708036242533,-500.0,0.00038356,7]
[314163790,1708036242542,-500.0,0.00038356,7]
[314163791,1708036242551,-500.0,0.00038356,7]
[314163792,1708036242560,-500.0,0.00038356,7]
[314163793,1708036242569,-500.0,0.00038356,7]
[314163794,1708036242578,-471.43059741,0.00038356,7]
[314163795,1708036242587,-500.0,0.00038356,7]
[314163796,1708036242596,-500.0,0.00038356,7]
[314163797,1708036242605,-500.0,0.00038356,7]
[314163798,1708036242615,-496.70227817,0.00038356,7]
[314163799,1708036242624,-500.0,0.00038356,7]
[314163800,1708036242633,-500.0,0.00038356,7]
[314163801,1708036242642,-500.0,0.00038356,7]
[314163802,1708036242651,-500.0,0.00038356,7]
[314163803,1708036242661,-500.0,0.00038356,7]
[314163804,1708036242670,-500.0,0.00038356,7]
[314163805,1708036242679,-500.0,0.00038356,7]
[314163806,1708036242688,-402.1872036,0.00038356,7]
[314163807,1708036242697,-254.6219987,0.00038356,7]
[314163808,1708036242706,-500.0,0.00038356,7]
[314163809,1708036242716,-500.0,0.00038356,7]
[314163810,1708036242725,-500.0,0.00038356,7]
[314163811,1708036242734,-500.0,0.00038356,7]
[314163812,1708036242743,-500.0,0.00038356,7]
[314163813,1708036242752,-500.0,0.00038356,7]
[314163814,1708036242761,-500.0,0.00038356,2]
[314163815,1708036242770,-526.94165787,0.00038356,7]
[314163816,1708036242779,-418.41459698,0.00038356,7]
[314163817,1708036242789,-500.0,0.00038356,7]
[314163818,1708036242798,-500.0,0.00038356,7]
[314163819,1708036242807,-500.0,0.00038356,2]
[314163820,1708036242817,-500.0,0.00038356,7]
[314163821,1708036242826,-500.0,0.00038356,7]
[314163822,1708036242835,-500.0,0.00038356,2]
[314163823,1708036242844,-500.0,0.00038356,7]
[314163824,1708036242853,-500.0,0.00038356,7]
[314163825,1708036242862,-500.0,0.00038356,7]
[314163826,1708036242871,-500.0,0.00038356,7]
[314163827,1708036242882,-500.0,0.00038356,7]
[314163828,1708036242891,-500.0,0.00038356,7]
[314163829,1708036242900,-500.0,0.00038356,7]
[314163830,1708036242909,-500.0,0.00038356,7]
[314163831,1708036242918,-190.82,0.00038356,7]
[314163832,1708036242927,-500.0,0.00038356,7]
[314163833,1708036242937,-500.0,0.00038356,7]
[314163834,1708036242946,-551.22152518,0.00038356,7]
[314163835,1708036242955,-500.0,0.00038356,7]
[314163836,1708036242964,-500.0,0.00038356,7]
[314163837,1708036242974,-500.0,0.00038356,7]
[314163838,1708036242983,-500.0,0.00038356,7]
[314163839,1708036242990,-500.0,0.00038356,7]
[314163840,1708036243000,-500.0,0.00038356,7]
[314163841,1708036243009,-500.0,0.00038356,7]
[314163842,1708036243018,-500.0,0.00038356,7]
[314163843,1708036243027,-500.0,0.00038356,7]
[314163844,1708036243037,-500.0,0.00038356,7]
[314163845,1708036243046,-500.0,0.00038356,7]
[314163846,1708036243055,-500.0,0.00038356,7]
[314163847,1708036243065,-500.0,0.00038356,7]
[314163848,1708036243074,-500.0,0.00038356,7]
[314163849,1708036243084,-500.0,0.00038356,7]
[314163850,1708036243094,-500.0,0.00038356,7]
[314163851,1708036243110,-500.0,0.00038356,7]
[314163853,1708036243120,-500.0,0.00038356,7]
[314163854,1708036243129,-500.0,0.00038356,7]
[314163855,1708036243139,-500.0,0.00038356,7]
[314163856,1708036243148,-500.0,0.00038356,7]
[314163857,1708036243158,-500.0,0.00038356,7]
[314163859,1708036243167,-500.0,0.00038356,7]
[314163861,1708036243178,-500.0,0.00038356,7]
[314163863,1708036243187,-1000.0,0.00038356,120]
[314163865,1708036243198,-500.0,0.00038356,7]
[314163867,1708036243207,-540.64594209,0.00038356,7]
[314163869,1708036243216,-167.72123465,0.00038356,7]
[314163871,1708036243225,-500.0,0.00038356,7]
[314163874,1708036243234,-500.0,0.00038356,7]
[314163877,1708036243243,-500.0,0.00038356,7]
[314163879,1708036243251,-500.0,0.00038356,7]
[314163881,1708036243261,-500.0,0.00038356,7]
[314163883,1708036243270,-500.0,0.00038356,7]
[314163885,1708036243280,-500.0,0.00038356,7]
[314163887,1708036243289,-259.73761298,0.00038356,7]
[314163889,1708036243298,-500.0,0.00038356,7]
[314163891,1708036243307,-500.0,0.00038356,7]
[314163893,1708036243317,-500.0,0.00038356,7]
[314163895,1708036243326,-500.0,0.00038356,7]
[314163897,1708036243335,-500.0,0.00038356,7]
[314163899,1708036243344,-500.0,0.00038356,7]
[314163901,1708036243353,-500.0,0.00038356,7]
[314163903,1708036243363,-500.0,0.00038356,7]
[314163905,1708036243372,-500.0,0.00038356,7]
[314163906,1708036243381,-500.0,0.00038356,7]
[314163907,1708036243390,-500.0,0.00038356,7]
[314163908,1708036243400,-500.0,0.00038356,7]
[314163909,1708036243409,-500.0,0.00038356,7]
[314163910,1708036243418,-500.0,0.00038356,7]
[314163911,1708036243427,-500.0,0.00038356,7]
[314163912,1708036243436,-500.0,0.00038356,7]
[314163913,1708036243445,-416.0,0.00038356,7]
[314163914,1708036243454,-500.0,0.00038356,7]
[314163915,1708036243463,-500.0,0.00038356,7]
[314163916,1708036243471,-500.0,0.00038356,7]
[314163917,1708036243481,-500.0,0.00038356,7]
[314163918,1708036243490,-500.0,0.00038356,7]
[314163919,1708036243499,-500.0,0.00038356,7]
[314163920,1708036243508,-500.0,0.00038356,7]
[314163921,1708036243518,-150.0,0.00038356,7]
[314163922,1708036243526,-500.0,0.00038356,7]
[314163923,1708036243536,-213.33843757,0.00038356,7]
[314163924,1708036243545,-500.0,0.00038356,7]
[314163925,1708036243554,-500.0,0.00038356,7]
[314163926,1708036243563,-500.0,0.00038356,7]
[314163927,1708036243572,-500.0,0.00038356,7]